Cogmind - Beta 16 @@@ ROGUE MODE // 2025.11.25 @ 19:09:51 Player: the Result: Smashed by cave-in Performance ------------- Evolutions (0) 0 Regions Visited (4) 800 Robots Destroyed (36) 180 Value Destroyed (703) 703 Prototype IDs (2) 40 Alien Tech Used (0) 0 Bonus (0) 0 TOTAL SCORE: 1723 Bonus ------- None Cogmind --------- Core Integrity 0/250 Matter 189/300 Energy 230/240 System Corruption 2% Temperature Cool (9) Movement Treading (160) Location -9/Mines Parts ------- > --- POWER (1) -------- Nuclear Core > --- PROPULSION (2) --- Light Treads Light Treads > --- UTILITY (2) ------ Large Storage Unit Seismic Detector > --- WEAPON (2) ------- Subdweller Laser > --- INVENTORY (15) --- Light Treads Light Treads Hacking Suite Medium Laser Medium Laser Medium Laser Beam Rifle Assault Rifle Assault Rifle Grenade Launcher Rocket Launcher Datajack Mining Laser Axe Peak State ------------ > --- POWER ------------ Nuclear Core > --- PROPULSION ------- Light Treads Light Treads > --- UTILITY ---------- Large Storage Unit Seismic Detector > --- WEAPON ----------- Subdweller Laser Rocket Launcher > --- INVENTORY -------- Light Treads Light Treads Light Treads Hacking Suite Medium Laser Medium Laser Medium Laser Beam Rifle Assault Rifle Assault Rifle Heavy Assault Rifle Grenade Launcher Datajack Mining Laser Axe [Rating: 13] Favorites ----------- Power Nuclear Core Engine Light Ion Engine Power Core Nuclear Core Propulsion Light Treads Treads Light Treads Leg Aluminum Leg Utility Large Storage Unit Device Seismic Detector Storage Large Storage Unit Protection Light Armor Plating Weapon Assault Rifle Energy Gun Subdweller Laser Ballistic Gun Assault Rifle Ballistic Cannon Light Cannon Launcher Grenade Launcher Special Weapon Mining Laser Build | -11 -10 -10 -10 -9 ------- Run | Yrd Mat Min Exi Min Slots Evolved . | . . . . . Power . | . . . . . Propulsion . | . . . . . Utility . | . . . . . Weapon . | . . . . . Parts Attached 27 | 8 11 3 . 5 Power 2 | 1 . 1 . . Engine 1 | 1 . . . . Core 1 | . . 1 . . Reactor . | . . . . . Propulsion 5 | 2 2 . . 1 Treads 3 | . 2 . . 1 Leg 2 | 2 . . . . Wheel . | . . . . . Hover . | . . . . . Flight . | . . . . . Utility 8 | 2 4 1 . 1 Device 3 | 1 1 . . 1 Storage 3 | 1 2 . . . Processor . | . . . . . Hackware . | . . . . . Protection 2 | . 1 1 . . Artifact . | . . . . . Weapon 12 | 3 5 1 . 3 Energy Gun 4 | 1 2 . . 1 Energy Cannon . | . . . . . Ballistic Gun 4 | 2 . 1 . 1 Ballistic Cannon 1 | . 1 . . . Launcher 2 | . 1 . . 1 Special Weapon 1 | . 1 . . . Impact Weapon . | . . . . . Slashing Weapon . | . . . . . Piercing Weapon . | . . . . . Special Melee Weapon . | . . . . . Unidentified Prototypes . | . . . . . Parts Lost 7 | . 4 1 . 2 Power 1 | . 1 . . . Propulsion 3 | . 2 . . 1 Utility 2 | . 1 1 . . Weapon 1 | . . . . 1 Highest Loss Streak 2 | . 2 1 . 2 To Critical Strikes . | . . . . . Average Backups 11 | 3 10 10 14 14 Power . | . . . . . Propulsion 1 | 1 1 1 3 2 Utility 1 | . 2 1 1 1 Weapon 7 | 1 7 7 9 9 Tool/Special . | . . . . . Unused Backups 8 | . . . . 8 Power . | . . . . . Propulsion 2 | . . . . 2 Utility 1 | . . . . 1 Weapon 4 | . . . . 4 Tool/Special 1 | . . . . 1 Average Slot Usage (%) 91 | . 82 96 100 100 Engine 1 | . 3 . . . Core 6 | . . 10 14 14 Treads 23 | . 17 28 28 28 Leg 4 | . 10 . . . Device 4 | . 7 . . 3 Storage 14 | . 14 14 14 14 Protection 7 | . . 14 14 10 Energy Gun 3 | . 3 . . 13 Ballistic Gun 17 | . 16 25 28 1 Ballistic Cannon 3 | . 5 2 . . Launcher 2 | . . . . 13 Peak Build Rating 13 | 7 8 11 11 13 Average Rating 8 | 5 6 9 11 12 On Entrance 7 | . 7 7 11 11 Avg Prop Armor Cover (%) 25 | 25 . . . . Naked Turns . | . . . . . Heaviest Build 37 | 13 28 34 34 37 Greatest Support 40 | 20 40 40 40 40 Greatest Overweight (x) 4 | . 4 . . . Average Overweight (x) . | . . . . . Largest Inventory Capacity 15 | 8 15 15 15 15 Average Capacity 13 | 7 12 15 15 15 Most Carried 15 | 7 13 14 14 15 Average Carried 11 | 3 10 10 14 14 Final Capacity 15 | 8 15 15 15 15 Final Carried 14 | 5 12 14 14 14 Class Distribution -------------------- 100% | Mutant Dominant Class ---------------- Mutant | -10/Materials Mutant | -10/Mines Mutant | -10/Exiles Mutant | -9/Mines Resources | -11 -10 -10 -10 -9 ----------- Run | Yrd Mat Min Exi Min Matter Collected 1023 | 169 675 149 . 30 Remotely . | . . . . . Salvage Created 1180 | 222 698 59 . 201 Parts 73 | 15 37 3 . 18 Haulers Intercepted 1 | . 1 . . . Recyclers Shooed 1 | . . . . 1 Parts Field Recycled . | . . . . . Retrieved Matter . | . . . . . Parts Self-Destructed . | . . . . . Prevented . | . . . . . Parts Restored . | . . . . . Kills | -11 -10 -10 -10 -9 ------- Run | Yrd Mat Min Exi Min Combat Hostiles Destroyed 35 | . 14 2 . 19 Guns 12 | . 11 1 . . Cannons 1 | . . 1 . . AOE 22 | . 3 . . 19 Classes Destroyed 8 | 2 5 . . 1 Builder 1 | . 1 . . . Tunneler 8 | 5 . . . 3 Hauler 1 | . 1 . . . Recycler 3 | 1 1 . . 1 Watcher 3 | . 3 . . . Swarmer 7 | . 3 . . 4 Grunt 13 | . 11 2 . . Assembled 15 | . . . . 15 Best Kill Streak 15 | 6 4 1 . 15 Combat Bots Only 15 | . 3 1 . 15 Max Kills in Single Turn 5 | 1 4 1 . 5 Gunslinging . | . . . . . Exploded 5 | . 3 . . 5 Melee . | . . . . . Uniques/NPCs Destroyed . | . . . . . Combat | -11 -10 -10 -10 -9 -------- Run | Yrd Mat Min Exi Min Hostile Shots Fired 135 | . 92 26 . 17 Missed 33 | . 27 3 . 3 Hits 102 | . 65 23 . 14 Projectile 102 | . 65 23 . 14 AOE 6 | . . . . 6 Critical Strikes 3 | . 2 1 . . Damage Taken 1711 | . 825 377 . 509 Core 291 | . 121 41 . 129 Absorbed by Shields . | . . . . . Regen/Repaired (Parts) 132 | . 132 . . . Core Remaining (%) 100 | 100 . . . . Volleys Fired 122 | 12 74 15 . 21 Largest 2 | 2 2 2 . 2 Hottest 100 | 40 100 50 . 83 Shots Fired 221 | 24 145 30 . 22 Gun 182 | 24 128 16 . 14 Cannon 27 | . 13 14 . . Launcher 9 | . 1 . . 8 Special 3 | . 3 . . . Kinetic 168 | 24 113 30 . 1 Thermal 44 | . 31 . . 13 Explosive 9 | . 1 . . 8 Electromagnetic . | . . . . . Robot Hit Streak 9 | 6 6 5 . 9 Robot Miss Streak 6 | 3 6 3 . 1 Penetration Max . | . . . . . Secondary Targets 1 | . 1 . . . Max Gunslinging Chain 1 | . 1 . . . Shots Hit Robots 124 | 17 77 18 . 12 Core Hits 88 | 7 34 6 . 41 Critical Kills 3 | . 2 . . 1 Critical Parts Destroyed 1 | . . . . 1 Critical Strikes 5 | . 3 . . 2 Burn 1 | . 1 . . . Destroy 4 | . 2 . . 2 Melee Attacks . | . . . . . Impact . | . . . . . Slashing . | . . . . . Piercing . | . . . . . Sneak Attacks . | . . . . . Combat Hostiles . | . . . . . Follow-up Attacks . | . . . . . Damage Inflicted 2990 | 219 1199 290 . 1282 Guns 1507 | 219 920 135 . 233 Cannons 254 | . 99 155 . . Explosions 1229 | . 180 . . 1049 Melee . | . . . . . Ramming . | . . . . . Kinetic 1316 | 219 807 290 . . Thermal 445 | . 212 . . 233 Explosive 1229 | . 180 . . 1049 Electromagnetic . | . . . . . Impact . | . . . . . Slashing . | . . . . . Piercing . | . . . . . Highest Corruption . | . . . . . Average Corruption . | . . . . . Corruption Purged . | . . . . . Corruption Blocked . | . . . . . Overload Shots . | . . . . . Overflow Damage 25 | . . . . 25 Projectiles . | . . . . . Explosions 25 | . . . . 25 Melee . | . . . . . Knockbacks 3 | . 1 2 . . Impact . | . . . . . Kinetic 3 | . 1 2 . . Secondary . | . . . . . Self-Inflicted Damage . | . . . . . Shots . | . . . . . Rammed . | . . . . . Targets Rammed . | . . . . . Kicked . | . . . . . Crushed . | . . . . . Highest Temperature 340 | . 340 21 . 90 Average Temperature 94 | . 161 6 . 35 Received Heat Transfer 696 | . 486 210 . . Siege Activations . | . . . . . Martial Activations . | . . . . . Shielding Activations . | . . . . . Robots Disrupted . | . . . . . Combat Hostiles . | . . . . . Robots Corrupted . | . . . . . Combat Hostiles . | . . . . . Parts Fried . | . . . . . Impact Corruptions . | . . . . . Robots Melted . | . . . . . Combat Hostiles . | . . . . . Parts Melted 3 | . 3 . . . Heat Transferred 978 | . 703 . . 275 Parts Sabotaged . | . . . . . Parts Stolen . | . . . . . Parts Stripped . | . . . . . Power Chain Reactions . | . . . . . Alert | -11 -10 -10 -10 -9 ------- Run | Yrd Mat Min Exi Min Maximum Alert Level . | . . . . . Low Security (%) 100 | 100 100 100 . 100 Level 1 . | . . . . . Level 2 . | . . . . . Level 3 . | . . . . . Level 4 . | . . . . . Level 5 . | . . . . . High Security . | . . . . . Max Security . | . . . . . Peak Influence 142 | 15 142 30 . 101 Initial 10 | . 3 10 . . Average 26 | 4 43 2 . 15 Influence Increases 693 | 30 477 50 . 136 Destroy 0b10 Robot/C 400 | . 280 40 . 80 Destroy 0b10 Robot/NC 80 | 30 30 . . 20 Destroy Leader 88 | . 68 10 . 10 Successful Hack 45 | . 45 . . . Disable Machine 15 | . 15 . . . Destroy Structure 35 | . 9 . . 26 Lose Combat Pursuer 30 | . 30 . . . Influence Decreases 645 | 25 453 79 . 88 Entered New Map 21 | . 2 19 . . Time Decay 564 | 25 421 50 . 68 Lost Part 60 | . 30 10 . 20 Squads Dispatched 3 | . 3 . . . Investigation 1 | . 1 . . . Extermination . | . . . . . Reinforcement 2 | . 2 . . . Assault . | . . . . . Garrison . | . . . . . Intercept . | . . . . . Searches Triggered . | . . . . . Construction Impeded . | . . . . . Haulers Reinforced . | . . . . . Active Scanning Responses . | . . . . . Cargo Convoy Interrupts . | . . . . . Stealth | -11 -10 -10 -10 -9 --------- Run | Yrd Mat Min Exi Min Distress Signals 2 | . 2 . . . Communications Jammed . | . . . . . Distress Signals . | . . . . . Times Spotted 42 | . 20 3 . 19 Peak Tracking Total 18 | . 3 2 . 18 Tactical Retreats 2 | . 1 . . 1 Traps | -11 -10 -10 -10 -9 ------- Run | Yrd Mat Min Exi Min Traps Triggered 2 | . 1 1 . . Indirectly . | . . . . . Trap Hack Attempts . | . . . . . Triggered . | . . . . . Disarmed . | . . . . . Reprogrammed . | . . . . . Reused . | . . . . . Traps Extracted . | . . . . . Installed . | . . . . . Triggered . | . . . . . Machines | -11 -10 -10 -10 -9 ---------- Run | Yrd Mat Min Exi Min Machines Disabled 1 | . 1 . . . Max in Single Turn 1 | . 1 . . . Machines Repaired . | . . . . . Machines Dismantled . | . . . . . Machines Sabotaged . | . . . . . Overloaded Fab Kills . | . . . . . Hacking | -11 -10 -10 -10 -9 --------- Run | Yrd Mat Min Exi Min Machines Accessed 10 | . 7 1 1 1 Terminals 7 | . 6 . . 1 Fabricators . | . . . . . Repair Stations 1 | . 1 . . . Recycling Units . | . . . . . Scanalyzers . | . . . . . Garrison Access . | . . . . . Total Hacks 38 | . 31 1 1 5 Successful 23 | . 20 1 1 1 Failed 15 | . 11 . . 4 Catastrophic 1 | . . . . 1 Database Lockouts . | . . . . . Manual 24 | . 19 . . 5 Terminals 32 | . 27 . . 5 Fabricators . | . . . . . Repair Stations 4 | . 4 . . . Recycling Units . | . . . . . Scanalyzers . | . . . . . Garrison Access . | . . . . . Terminal Hacks 8 | . 5 1 1 1 Record 1 | . . . 1 . Robot Analysis 1 | . . . . 1 Prototype ID Bank 1 | . 1 . . . Open Door 1 | . . 1 . . Terminal Index 1 | . 1 . . . Locate Traps 1 | . 1 . . . Recall Reinforcements 1 | . 1 . . . Registered Components 1 | . 1 . . . Fabricator Hacks . | . . . . . Repair Station Hacks 4 | . 4 . . . Scan Component 2 | . 2 . . . Repair 2 | . 2 . . . Recycling Unit Hacks . | . . . . . Scanalyzer . | . . . . . Garrison Access Hacks . | . . . . . Unauthorized Hacks 11 | . 11 . . . Terminals 11 | . 11 . . . Assimilate 3 | . 3 . . . Botnet 2 | . 2 . . . Operators 1 | . 1 . . . Skim 5 | . 5 . . . Fabricators . | . . . . . Repair Stations . | . . . . . Recycling Units . | . . . . . Scanalyzers . | . . . . . Garrison Access . | . . . . . Data Cores Recovered . | . . . . . Used . | . . . . . Hacking Detections 8 | . 7 . . 1 Full Trace Events 1 | . 1 . . . Feedback Events . | . . . . . Feedback Blocked . | . . . . . Robot Schematics Acquired . | . . . . . Robots Built . | . . . . . Authchips . | . . . . . Time . | . . . . . Total Robot Build Rating . | . . . . . Part Schematics Acquired . | . . . . . Parts Built . | . . . . . Authchips . | . . . . . Time . | . . . . . Total Part Build Rating . | . . . . . Part Studies Acquired . | . . . . . Parts Repaired 2 | . 2 . . . Time 52 | . 52 . . . Parts Recycled . | . . . . . Recycled Matter . | . . . . . Retrieved Matter . | . . . . . Retrieved Components . | . . . . . Parts Scanalyzed . | . . . . . Part Schematics Acquired . | . . . . . Parts Damaged . | . . . . . Bothacking | -11 -10 -10 -10 -9 ------------ Run | Yrd Mat Min Exi Min Used RIF Installer . | . . . . . Robots Hacked . | . . . . . Non-combat . | . . . . . Combat . | . . . . . Robot Hacks Applied . | . . . . . Relay Couplers Released . | . . . . . Fabnet Peak Effective % . | . . . . . Robots Rewired . | . . . . . Allies Hacked . | . . . . . Hacks Repelled . | . . . . . Allies | -11 -10 -10 -10 -9 -------- Run | Yrd Mat Min Exi Min Total Allies . | . . . . . Largest Group . | . . . . . Highest-Rated Group . | . . . . . Highest-Rated Ally . | . . . . . Total Orders . | . . . . . Ally Attacks . | . . . . . Total Damage . | . . . . . Kills . | . . . . . Allies Corrupted . | . . . . . Allies Melted . | . . . . . Intel | -11 -10 -10 -10 -9 ------- Run | Yrd Mat Min Exi Min Active Infowar (turns) 1196 | 4 1024 . . 168 Seismic 1196 | 4 1024 . . 168 Robot Analysis Total 1 | . . . . 1 Derelict Logs Recovered 2 | . . 1 . 1 Drone Launches . | . . . . . Drone Recoveries . | . . . . . Exploration | -11 -10 -10 -10 -9 ------------- Run | Yrd Mat Min Exi Min Turns Passed 4020 | 96 1817 855 624 628 Spaces Moved 2011 | 45 846 460 391 269 Core 22 | 20 2 . . . Treads 1639 | . 519 460 391 269 Legs 350 | 25 325 . . . Wheels . | . . . . . Hover . | . . . . . Flight . | . . . . . Fastest Speed 50 | 50 120 160 160 160 Average Speed 152 | 88 144 160 160 160 Slowest Speed 250 | 120 250 160 160 160 Overloaded Moves . | . . . . . Propulsion Burnouts . | . . . . . Robots Hopped . | . . . . . Potential Cave-ins . | . . . . . Cave-ins Triggered 1 | . . . . 1 Exploration Rate (%) 62 | 4 83 98 74 55 Regions Visited 4 Branch Regions 3 Pre-discovered Areas 2 | . . . 1 1 Known Exits Taken . | . . . . . Unknown Exits Taken 4 | 1 1 1 1 . Scrap Searched 2 | . . 1 . 1 Spaces Dug 3 | . 3 . . . Terrain Destroyed 47 | . 7 . . 40 Melee . | . . . . . Projectile 3 | . 3 . . . AOE 44 | . 4 . . 40 Terrain Rammed . | . . . . . Walls Destroyed . | . . . . . Machines Disabled . | . . . . . Actions | -11 -10 -10 -10 -9 --------- Run | Yrd Mat Min Exi Min Total 2743 | 75 1283 550 390 445 Wait 540 | . 328 65 . 147 Move 2007 | 44 845 459 390 269 Hop . | . . . . . Pick Up 31 | 10 15 5 . 1 Fast Attach 6 | 3 1 1 . 1 Attach 11 | 4 3 3 . 1 Detach . | . . . . . Swap 17 | 1 12 . . 4 Drop 9 | 1 5 2 . 1 Fire 122 | 12 74 15 . 21 Melee . | . . . . . Ram . | . . . . . Kick . | . . . . . Crush . | . . . . . Escape Stasis . | . . . . . Rewire . | . . . . . Trap . | . . . . . Miscellaneous . | . . . . . Route ------- -11/Scrapyard -10/Materials (discovered 3 exits: [*Mat x2] / *Min) -10/Mines (discovered 3 exits: [*Mat x2] / *Exi) -10/Exiles -9/Mines (discovered 2 exits: *Mat x2) History --------- Turn | Location | Event 5 | -11/Scrapyard | Discovered new exit (range 16) 97 | -11/Scrapyard | Entered Materials 317 | -10/Materials | Build established: Mutant 431 | -10/Materials | Discovered new exit (range 13) 697 | -10/Materials | Derelicts attacked the area 1226 | -10/Materials | Repaired Assault Rifle 1253 | -10/Materials | Repaired Lgt. Treads 1284 | -10/Materials | Discovered new exit (range 8) 1779 | -10/Materials | Discovered new exit (range 8) 1914 | -10/Materials | Entered Mines 1921 | -10/Mines | Core integrity fell below 50% 1983 | -10/Mines | Discovered new exit (range 10) 1986 | -10/Mines | Learned Materials garrison access intel 2008 | -10/Mines | Met a Derelict who couldn't figure out how to use a Trap Extractor 2172 | -10/Mines | Found a Scrap Suit stashed away for nefarious purposes 2396 | -10/Mines | Discovered new exit (range 7) 2652 | -10/Mines | Joined a pair of Derelicts in attacking an 0b10 outpost 2758 | -10/Mines | Deemed a non-threat by the Exiles lab entrance 2758 | -10/Mines | Discovered new exit (range 5) 2769 | -10/Mines | Entered Exiles 2809 | -10/Exiles | Met 8R-AWN 2835 | -10/Exiles | Met EX-HEX 2899 | -10/Exiles | Met EX-DEC 2905 | -10/Exiles | Learned location of Zion (-7) 2944 | -10/Exiles | Met EX-BIN 3231 | -10/Exiles | Visited The Gauntlet 3371 | -10/Exiles | Discovered new exit (range 14) 3393 | -10/Exiles | Entered Mines 3400 | -9/Mines | Received a Rocket Launcher from a helpful Derelict 3557 | -9/Mines | Learned location of Storage (-8) 3866 | -9/Mines | Discovered new exit (range 15) 3947 | -9/Mines | Identified exit to Materials 3998 | -9/Mines | Assembled infested the area 4003 | -9/Mines | Assisted by a Guerilla fighting off Assembled 4014 | -9/Mines | Core integrity fell below 20% 4022 | -9/Mines | Crushed by falling debris 4022 | -9/Mines | Smashed by cave-in Last Messages --------------- 04004_ as-92753 suffers critical hit (Destroy). 04004_ as-92753 destroyed. 04005_ as-51879 destroyed. 04005_ as-06772 destroyed. 04005_ as-56765 destroyed. 04005_ as-92790 destroyed. 04007_ as-83213 destroyed. 04007_ as-38861 destroyed. 04011_ Destroyed Asb. Hover Unit. 04011_ as-78072 destroyed. 04011_ as-85107 destroyed. 04013_ D-53 Grenadier unfolds itself. 04013_ Lgt. Treads destroyed. 04013_ as-78739 destroyed. 04013_ T9-5D6(h) destroyed. 04018_ U-05 Engineer destroyed. 04022_ The unstable cave ceiling collapses. 04022_ Crushed by falling debris. 04022_ Hvy. Assault Rifle destroyed. 04022_ System corrupted by crushing effect (+2). Map ----- +----------------------------------------------------+ | ?????????????????????????????????????????????????? | | ?????????????????????????????????????????????????? | | ?????????????????????????????????????????????????? | | ?????????????????????????????????????????????????? | | ????########### ##??????????????????????????????? | | ##### % #??????????????????????????????? | | #??????????????????????????????? | | ##### ##### #?#????????????????????????????? | | ????# #???????????? #???????????????????????????? | | ????#%|#???????????? ????????????????????????????? | | ????#*!#??????????## ????????????????????????????? | | ????# %#??????????# ????????????????????????????? | | ????#=[####???????# #????????????????????????????? | | ????#%! #???????# #??#####?????????????????????? | | ????#% ## #???????# #### ##????????????????????? | | #####% ## #??????##u ## #????????????????????? | | ## #??????# #??###???????????????? | | ## #?????## #??# ##??????????????? | | ######### ####### " #??# #??????????????? | | ????????# % ### #??????????????? | | ????????# ###### ## #??????????????? | | ????????# #????# #### % ! #???????????????? | | ????????# #????# ###?# d % ###?????????????? | | ????????# #????# #??## d ## #?????????? | | #####???# ###### #??# #???????? | | #???# #??# @ ???????? | | ######## #### ###??# a ????????? | | # ### #?#### ????????? | | # ## ## ## ?????????? | | #=###### < ## #### ?????????? | | #?## ###????## # ?????????? | | = #??## #????????### ??????????? | | """ #???## #???????????# ??????????? | | """ #????## #????????????? ???????????? | | """ #?????### #??????????????#???????????? | | ######???????###### ##??????????????????????????? | | ???????????????????###???????????????????????????? | | ?????????????????????????????????????????????????? | | ?????????????????????????????????????????????????? | | | | | | | | | | | | | | | | | | | | | | | +----------------------------------------------------+ Best States ------------- Heat Dissipation 25 Energy Generation 14 Energy Capacity 240 Matter Stores 300 Matter Capacity 300 Sight Range 16 Terrain Scan Density 10 Armor Coverage 150 Evasion (%) 55 Recoil Reduction 2 Item Schematics ----------------- None Robot Schematics ------------------ None Fabricated ------------ Nothing Repaired ---------- Assault Rifle | 24% | -10/Materials Lgt. Treads | 60% | -10/Materials Studied --------- None Alien Tech Used ----------------- None Achievements -------------- None Challenges ------------ None Game ------ Seed LayeredTechHoverbase Manual? 0 Play Time 00:50:41 Cumulative 422.8 hours Start 2025.11.25 @ 12:34:12 End 2025.11.25 @ 19:09:51 Sessions 5 Manual Loads 0 Difficulty Rogue Special Mode None Game No. 271 Rogue 271 Adventurer 0 Explorer 0 Win Type - Total 7 Types 4/0/2/0/0/0/0/1/0/0 Lore% 82 Gallery% 80 Achievement% 56 Wizard Run 0 Options --------- Layout 1 ASCII 0 Keyboard 0 Movement Numpad Keybinds 0 Fullscreen 1 Font 24/Smallcaps Map View 50x40 Zoom Use 3% Tactical HUD 1 Map Filters NONE Filters NONE Steam 1 RUN: 355ea3e6-2214-41d5-b946-d0b60665dbb8